Cogmind - Beta 12 @@@ ROGUE MODE // 2023.07.23 @ 12:15:51 Player: Horse Result: Self-destructed Performance ------------- Evolutions (6) 3000 Regions Visited (23) 4600 Robots Destroyed (274) 1370 Value Destroyed (10825) 10825 Prototype IDs (60) 1200 Alien Tech Used (0) 0 Bonus (6250) 6250 TOTAL SCORE: 27245 Bonus ------- High Alert Combat Kills 1213 Follower Combat Kills 1898 Entered Garrisons 200 Met Data Miner 300 Met Imprinter 300 Was Imprinted 300 Met Warlord at Base 500 MAIN.C Attacked Warlord 500 Warlord Defense Kills 1794 Friendly Fire -755 Cogmind --------- Core Integrity 986/1150 Matter 289/300 Energy 74/450 System Corruption 5% Temperature Cool (0) Movement Walking (120) Location -4/Factory Parts ------- > --- POWER (2) -------- (None) > --- PROPULSION (3) --- Flexi-carbon Leg Enhanced Armored Leg > --- UTILITY (12) ----- Experimental Heat Sink Medium Storage Unit Energy Well Experimental Cloaking Device Light Regenerative Plating Advanced EM Disruption Field Improved Energy Mantle > --- WEAPON (2) ------- (None) > --- INVENTORY (10) --- Heavy Siege Treads Quantum Capacitor Mobile Refinery Mk. CCLXVII Nova Cannon Experimental Thermic Cannon Vortex Driver (28) Mini Smartbomb Launcher Peak State ------------ > --- POWER ------------ Enhanced Fission Core Antimatter Reactor > --- PROPULSION ------- Armored Medium Treads Armored Heavy Treads > --- UTILITY ---------- Advanced Cooling System Medium Storage Unit Wardrone Bay > --- WEAPON ----------- Vortex Driver RU-N14's Throwing Claymores v3 > --- INVENTORY -------- Energy Well Advanced Particle Charger Advanced EM Disruption Field Mobile Refinery Mk. CCLXVII Nova Cannon Experimental Thermic Cannon Mini Smartbomb Launcher Molecular Deconstructor Vibroblade [Rating: 172] Favorites ----------- Power Enhanced Fission Core Engine Light Ion Engine Power Core Enhanced Fission Core Reactor Antimatter Reactor Propulsion Armored Heavy Treads Treads Armored Heavy Treads Leg Flexi-carbon Leg Wheel Armored Wheel Hover Unit Gravmag System Flight Unit Flight Unit Utility Medium Storage Unit Device Quantum Capacitor Storage Medium Storage Unit Processor Transport Network Coupler Hackware Hacking Suite Protection Layered Medium Armor Plating Weapon Neutron Cannon Energy Gun Medium Laser Energy Cannon Neutron Cannon Ballistic Gun Assault Rifle Launcher Mini Smartbomb Launcher Special Weapon RU-N14's Throwing Claymores v3 Impact Weapon Mace Slashing Weapon Vibroblade Build | -11 -10 -9 -8 -7 -7 -7 -7 -6 -6 -6 -6 -6 -6 -6 -5 -5 -5 -5 -5 -4 -4 -4 -4 ------- Run | Jun Mat Mat Mat Fac Low Low Zio Pro Fac Gar Fac Low Low Dat Pro Fac Upp Upp War Pro Fac Was Fac Slots Evolved 12 | . . 2 2 2 . . . . 2 . . . . . . 2 . . . . 2 . . Power 1 | . . . . . . . . . 1 . . . . . . . . . . . . . . Propulsion 1 | . . . . . . . . . 1 . . . . . . . . . . . . . . Utility 10 | . . 2 2 2 . . . . . . . . . . . 2 . . . . 2 . . Weapon . | . . . . . . . . . . . . . . . . . . . . . . . . Parts Attached 321 | 7 26 39 43 43 5 5 9 2 6 35 11 6 . . 10 8 7 10 24 3 18 2 2 Power 21 | 1 4 2 4 3 . . . . 1 3 1 . . . 1 . . . 1 . . . . Engine 9 | 1 4 2 . . . . . . . 2 . . . . . . . . . . . . . Core 10 | . . . 4 3 . . . . 1 1 1 . . . . . . . . . . . . Reactor 2 | . . . . . . . . . . . . . . . 1 . . . 1 . . . . Propulsion 47 | 2 2 9 9 2 2 2 . 2 3 5 1 . . . . 1 . 1 2 . 4 . . Treads 8 | . . . . . . 1 . . . 3 1 . . . . 1 . 1 1 . . . . Leg 21 | 2 2 2 3 1 1 . . . 3 2 . . . . . . . . 1 . 4 . . Wheel 12 | . . 6 1 1 1 1 . 2 . . . . . . . . . . . . . . . Hover 5 | . . . 5 . . . . . . . . . . . . . . . . . . . . Flight 1 | . . 1 . . . . . . . . . . . . . . . . . . . . . Utility 153 | 2 12 19 18 23 1 1 4 . 2 14 7 3 . . 6 2 6 7 15 2 6 2 1 Device 95 | 1 . 9 10 15 1 1 2 . . 12 5 2 . . 5 1 5 5 13 2 4 2 . Storage 13 | 1 6 . 2 . . . . . . 1 . . . . . . . 1 . . 1 . 1 Processor 5 | . . 1 . 3 . . . . . . . . . . . 1 . . . . . . . Hackware 7 | . . 2 2 2 . . . . 1 . . . . . . . . . . . . . . Protection 33 | . 6 7 4 3 . . 2 . 1 1 2 1 . . 1 . 1 1 2 . 1 . . Artifact . | . . . . . . . . . . . . . . . . . . . . . . . . Weapon 100 | 2 8 9 12 15 2 2 5 . . 13 2 3 . . 3 5 1 2 6 1 8 . 1 Energy Gun 8 | 1 2 1 3 1 . . . . . . . . . . . . . . . . . . . Energy Cannon 43 | . . 2 5 7 1 . 2 . . 9 1 3 . . 2 . . 2 5 . 4 . . Ballistic Gun 12 | 1 3 2 . 1 1 1 . . . . . . . . . . . . . 1 2 . . Ballistic Cannon . | . . . . . . . . . . . . . . . . . . . . . . . . Launcher 18 | . . . 1 3 . 1 3 . . 4 1 . . . . 2 1 . . . 2 . . Special Weapon 2 | . . . . . . . . . . . . . . . . . . . 1 . . . 1 Impact Weapon 11 | . 3 4 3 1 . . . . . . . . . . . . . . . . . . . Slashing Weapon 6 | . . . . 2 . . . . . . . . . . 1 3 . . . . . . . Piercing Weapon . | . . . . . . . . . . . . . . . . . . . . . . . . Special Melee Weapon . | . . . . . . . . . . . . . . . . . . . . . . . . Unidentified Prototypes 31 | . . 1 3 10 . . 4 . . . . . . . . . 2 . 9 . . 1 1 Corrupted Parts 2 | . . . . . . . . . . . . . . . 2 . . . . . . . . System Corruption 10 | . . . . . . . . . . . . . . . 10 . . . . . . . . Parts Lost 42 | . . 4 13 4 1 . . . 1 10 3 . . . . . . . . . . 1 5 Power 4 | . . 1 2 . . . . . . 1 . . . . . . . . . . . . . Propulsion 8 | . . . 2 1 . . . . . 4 . . . . . . . . . . . . 1 Utility 24 | . . 2 7 1 1 . . . 1 5 3 . . . . . . . . . . 1 3 Weapon 6 | . . 1 2 2 . . . . . . . . . . . . . . . . . . 1 Highest Loss Streak 6 | . . 2 6 2 1 . . . 1 3 2 . . . . . . . . . . 1 5 To Critical Strikes . | . . . . . . . . . . . . . . . . . . . . . . . . Average Slot Usage (%) 91 | . 99 98 86 95 99 94 99 99 95 96 85 86 86 86 85 87 88 87 84 80 85 85 74 Engine 1 | . 14 10 1 . . . . . . 4 . . . . . . . . . . . . . Core 6 | . . . 7 7 7 7 7 7 13 7 12 13 13 13 12 5 5 5 3 . . . . Reactor 1 | . . . . . . . . . . . . . . . . 5 5 5 5 5 5 4 . Treads 5 | . . . . . . 2 7 2 . 3 13 13 13 13 13 11 11 10 11 11 2 . . Leg 5 | . 28 11 6 9 13 9 . . 8 13 . . . . . . . . . . 10 15 14 Wheel 2 | . . 10 7 3 1 2 7 11 7 . . . . . . . . . . . . . . Device 30 | . . 10 11 11 43 48 44 46 38 33 38 26 26 26 32 35 35 35 33 35 39 44 34 Storage 7 | . 12 11 6 7 7 7 7 7 6 9 6 6 6 6 6 5 5 4 5 5 6 5 10 Processor 1 | . . 7 . 13 . . . . . . . . . . . 5 1 . . . . . . Hackware 3 | . . 6 23 22 . . . . 1 . . . . . . . . . . . . . . Protection 7 | . 14 8 8 5 9 . 8 7 6 6 . 12 13 13 6 5 9 10 10 11 8 5 5 Energy Cannon 7 | . . 6 7 9 7 7 11 15 13 11 9 6 6 6 5 5 5 5 5 5 3 5 2 Ballistic Gun 2 | . 12 11 . . 6 6 2 . . . . . . . . . . . . 3 2 . . Launcher 1 | . . . . . . . . . . 1 3 6 6 6 4 . 3 5 . . 3 5 2 Naked Turns . | . . . . . . . . . . . . . . . . . . . . . . . . Heaviest Build 117 | 13 27 31 30 58 50 43 54 50 63 74 71 77 72 72 81 83 83 86 117 90 106 99 61 Greatest Support 102 | 20 26 26 24 44 44 44 28 40 72 102 102 88 88 88 88 88 87 87 87 87 87 60 60 Greatest Overweight (x) 3 | 1 1 1 1 3 1 1 1 1 1 3 . . . . . . . 1 1 1 3 1 1 Average Overweight (x) . | . . . . . . . 1 1 . . . . . . . . . . . . 1 . . Largest Inventory Capacity 10 | 8 10 10 10 10 10 10 10 10 10 10 10 10 10 10 10 10 10 10 10 10 10 10 10 Average Capacity 9 | 7 9 10 8 10 10 10 10 10 10 10 10 10 10 10 10 10 10 9 10 10 10 10 10 Most Carried 10 | 3 10 10 10 10 10 10 10 10 10 10 10 10 10 10 10 10 10 10 10 10 10 10 10 Average Carried 9 | 1 8 9 6 9 10 9 9 10 9 9 9 9 10 10 9 9 10 9 9 10 9 9 8 Final Capacity 10 | 8 10 10 10 10 10 10 10 10 10 10 10 10 10 10 10 10 10 10 10 10 10 10 10 Final Carried 10 | 3 10 10 10 10 10 10 10 10 9 10 9 10 10 10 10 10 10 10 10 10 10 10 9 Class Distribution -------------------- 47% | Scavenger-Mutant 37% | Mutant 12% | Hacker-Mutant Dominant Class ---------------- Mutant | -10/Materials Mutant | -9/Materials Hacker-Mutant | -8/Materials Hacker-Mutant | -7/Factory Scavenger-Mutant | -7/Lower Caves Scavenger-Mutant | -7/Lower Caves Scavenger-Mutant | -7/Zion Scavenger-Mutant | -6/Proximity Caves Mutant | -6/Factory Scavenger-Mutant | -6/Garrison Mutant | -6/Factory Mutant | -6/Lower Caves Mutant | -6/Lower Caves Mutant | -6/Data Miner Mutant | -5/Proximity Caves Scavenger-Mutant | -5/Factory Scavenger-Mutant | -5/Upper Caves Scavenger-Mutant | -5/Upper Caves Scavenger-Mutant | -5/Warlord Mutant | -4/Proximity Caves Scavenger-Mutant | -4/Factory Mutant | -4/Waste Mutant | -4/Factory Resources | -11 -10 -9 -8 -7 -7 -7 -7 -6 -6 -6 -6 -6 -6 -6 -5 -5 -5 -5 -5 -4 -4 -4 -4 ----------- Run | Jun Mat Mat Mat Fac Low Low Zio Pro Fac Gar Fac Low Low Dat Pro Fac Upp Upp War Pro Fac Was Fac Matter Collected 5976 | 309 320 674 418 479 25 173 85 25 45 679 329 229 . . 590 132 330 443 246 34 391 20 . Remotely . | . . . . . . . . . . . . . . . . . . . . . . . . Salvage Created 9355 | 122 585 1266 1080 825 . 111 . . 42 1063 542 252 . . 436 442 320 799 524 285 378 264 19 Parts 443 | 9 42 83 39 40 . 5 . . 3 49 31 16 . . 24 16 7 24 23 15 13 1 3 Haulers Intercepted 11 | . 2 3 2 3 . . . . . . . . . . . 1 . . . . . . . Recyclers Shooed 11 | . 1 1 2 5 . . . . . . 1 . . . . . . . . . 1 . . Parts Field Recycled . | . . . . . . . . . . . . . . . . . . . . . . . . Retrieved Matter . | . . . . . . . . . . . . . . . . . . . . . . . . Parts Self-Destructed 112 | . . . . . . 8 . 18 . . . 14 . . 25 . 9 28 . 10 . . . Prevented 8 | . . . . . 3 . . 2 . . . 2 . . . . . 1 . . . . . Kills | -11 -10 -9 -8 -7 -7 -7 -7 -6 -6 -6 -6 -6 -6 -6 -5 -5 -5 -5 -5 -4 -4 -4 -4 ------- Run | Jun Mat Mat Mat Fac Low Low Zio Pro Fac Gar Fac Low Low Dat Pro Fac Upp Upp War Pro Fac Was Fac Combat Hostiles Destroyed 211 | . 11 24 21 16 . 4 . . 1 28 10 7 . . 22 4 10 22 12 8 9 1 1 Melee 7 | . 3 2 1 . . . . . . . . . . . . 1 . . . . . . . Guns 18 | . 8 7 . . . . . . . . . . . . . . . . . . 3 . . Cannons 78 | . . 10 13 5 . 4 . . . 17 1 1 . . 5 2 4 7 5 2 1 1 . AOE 92 | . . 3 4 11 . . . . 1 9 9 5 . . 16 1 6 13 5 5 4 . . Classes Destroyed 25 | 2 5 3 2 3 . . . . . 2 . . . . 2 . 1 2 2 . . 1 . Worker 14 | . . 5 . 1 . . . . 1 . 4 . . . . 3 . . . . . . . Builder 7 | . 1 3 . . . . . . . . 1 . . . . . . . . . 2 . . Tunneler 7 | 4 1 1 . . . . . . . . . . . . . 1 . . . . . . . Hauler 11 | . 2 3 2 3 . . . . . . . . . . . 1 . . . . . . . Recycler 11 | 1 3 1 3 2 . . . . . . 1 . . . . . . . . . . . . Minesweeper 1 | . . . . . . . . . . . . . . . . . . 1 . . . . . Mechanic 1 | . . . . . . . . . . . . . . . . . . 1 . . . . . Operator 3 | . . 1 1 . . . . . . . . . . . . 1 . . . . . . . Drone 5 | . . . . . . . . . . . . . . . 2 . 1 . . 2 . . . Watcher 6 | . 1 2 1 . . . . . . . 2 . . . . . . . . . . . . Swarmer 63 | . 9 7 5 3 . 3 . . . 11 . 3 . . 9 . 3 6 . . 4 . . Cutter 3 | . . . . . . . . . . 3 . . . . . . . . . . . . . Grunt 73 | . 2 15 9 . . . . . . 5 7 3 . . 5 2 5 8 4 4 4 . . Brawler 5 | . . . 1 . . . . . . . . . . . 1 . 1 2 . . . . . Duelist 5 | . . . . . . . . . . . . . . . 1 . . 4 . . . . . Protector 5 | . . . . 3 . . . . . . 1 . . . . . . . 1 . . . . Sentry 17 | . . 2 5 . . 1 . . . 6 . . . . 1 1 . 1 . . . . . Specialist 4 | . . . . 3 . . . . . . . . . . 1 . . . . . . . . Hunter 8 | . . . 1 4 . . . . . . 2 . . . 1 . . . . . . . . Programmer 16 | . . . . 3 . . . . 1 . . . . . 1 1 1 . 6 2 . . 1 Behemoth 6 | . . . . . . . . . . 3 . 1 . . . . . 1 . . 1 . . Compactor 1 | . . . . . . . . . . . . . . . . . . . . . . 1 . Striker 1 | . . . . . . . . . . . . . . . . . . . 1 . . . . Executioner 1 | . . . . . . . . . . . . . . . . . . . 1 . . . . Z-Light 1 | . . . . . . . . . . . . . . . . . 1 . . . . . . Best Kill Streak 12 | 5 4 8 4 12 . 2 . . 2 5 7 4 . . 7 4 6 10 7 6 6 1 1 Combat Bots Only 11 | . 3 4 3 11 . 2 . . 1 5 4 4 . . 7 2 6 9 7 6 3 1 1 Max Kills in Single Turn 6 | 1 2 3 2 6 . 1 . . 1 3 3 2 . . 4 1 3 3 2 2 3 1 1 Gunslinging 1 | . . 1 . . . . . . . . . . . . . . . . . . . . . Exploded 5 | . . 3 2 5 . . . . 1 3 2 2 . . 4 1 3 3 2 2 3 . . Melee 1 | . 1 1 1 . . . . . . . . . . . . 1 . . . . . . . Uniques/NPCs Destroyed . | . . . . . . . . . . . . . . . . . . . . . . . . Combat | -11 -10 -9 -8 -7 -7 -7 -7 -6 -6 -6 -6 -6 -6 -6 -5 -5 -5 -5 -5 -4 -4 -4 -4 -------- Run | Jun Mat Mat Mat Fac Low Low Zio Pro Fac Gar Fac Low Low Dat Pro Fac Upp Upp War Pro Fac Was Fac Damage Taken 10490 | . 367 1354 1575 799 349 178 . . 126 1743 857 100 . . 448 56 231 475 271 50 319 156 1036 Core 1480 | . 37 245 408 183 40 20 . . 67 154 50 . . . 44 11 23 16 18 . 30 55 79 Absorbed by Shields 1106 | . . . . . . . . . . 340 . 36 . . 169 21 86 176 75 19 129 55 . Redirected to Shielding 248 | . . . 102 7 57 . . . . . . . . . . . . 40 20 8 14 . . Regen/Repaired (Parts) 926 | . 113 . 77 . . . . . . . . 275 . . . 56 . . 405 . . . . Core Remaining (%) 66 | 100 85 38 25 . . . . 65 . . . . . . 62 . . . . 93 . . . Volleys Fired 643 | 13 30 80 101 43 . 17 1 . 3 77 37 6 . . 44 17 24 50 30 10 38 18 4 Largest 2 | 2 2 2 2 2 . 2 2 . 2 2 2 1 . . 1 1 1 1 2 1 2 1 1 Hottest 210 | 70 70 88 136 140 . 120 180 . 180 210 203 120 . . 113 113 113 120 120 113 148 120 . Shots Fired 841 | 26 54 156 107 57 . 29 2 . 6 116 39 6 . . 44 17 24 50 31 10 45 18 4 Gun 217 | 26 54 110 . . . 12 . . . . . . . . . . . . . . 15 . . Cannon 522 | . . 46 103 54 . 16 2 . 6 102 26 3 . . 24 15 14 37 24 7 25 18 . Launcher 88 | . . . 4 3 . 1 . . . 14 13 3 . . 20 2 10 13 . . 5 . . Special 14 | . . . . . . . . . . . . . . . . . . . 7 3 . . 4 Kinetic 180 | 13 30 110 . . . 12 . . . . . . . . . . . . . . 15 . . Thermal 532 | 13 24 46 78 54 . 16 2 . 6 102 26 3 . . 24 15 14 37 24 7 23 18 . Explosive 97 | . . . 4 2 . 1 . . . 14 13 3 . . 20 2 10 13 7 3 5 . . Electromagnetic 26 | . . . 25 1 . . . . . . . . . . . . . . . . . . . Entropic 2 | . . . . . . . . . . . . . . . . . . . . . 2 . . Robot Hit Streak 17 | 5 10 7 10 7 . 5 . . 5 17 9 12 . . 17 7 5 6 9 3 10 5 6 Robot Miss Streak 7 | 4 3 4 7 2 . 3 . . 1 3 4 . . . 1 2 2 2 2 1 2 2 1 Penetration Max 1 | . . . . . . . . . . . . . . . . . . . . . 1 . . Secondary Targets 6 | . 3 3 . . . . . . . . . . . . . . . . . . . . . Max Gunslinging Chain 1 | . 1 1 . . . . . . . . . . . . . . . . . . . . . Capacitor 172 | . . . . . . . . . . 8 20 3 . . 24 15 14 37 23 7 16 5 . Shots Hit Robots 506 | 15 38 99 79 39 . 14 . . 1 59 12 5 . . 20 16 11 29 23 7 30 6 3 Core Hits 391 | 6 21 44 41 29 . 5 . . 3 41 36 10 . . 34 12 27 35 13 11 22 1 . Critical Kills 7 | . 1 2 . . . . . . . . . . . . 1 . . 1 1 1 . . . Critical Parts Destroyed 6 | . 1 3 2 . . . . . . . . . . . . . . . . . . . . Critical Strikes 40 | 1 2 5 2 . . . . . . 9 . 1 . . 1 . . 6 6 1 4 2 . Burn 23 | 1 . . . . . . . . . 9 . 1 . . . . . 5 3 . 2 2 . Meltdown 4 | . . . . . . . . . . . . . . . 1 . . 1 1 1 . . . Destroy 2 | . . 2 . . . . . . . . . . . . . . . . . . . . . Smash 7 | . 2 3 2 . . . . . . . . . . . . . . . . . . . . Sever 2 | . . . . . . . . . . . . . . . . . . . 2 . . . . Sunder 2 | . . . . . . . . . . . . . . . . . . . . . 2 . . Melee Attacks 65 | . 15 25 19 1 . . . . . . . . . . . 5 . . . . . . . Impact 59 | . 15 25 19 . . . . . . . . . . . . . . . . . . . . Slashing 6 | . . . . 1 . . . . . . . . . . . 5 . . . . . . . Piercing . | . . . . . . . . . . . . . . . . . . . . . . . . Sneak Attacks 10 | . 3 2 . 1 . . . . . . . . . . . 4 . . . . . . . Combat Hostiles 2 | . . . . . . . . . . . . . . . . 2 . . . . . . . Follow-up Attacks 6 | . 1 5 . . . . . . . . . . . . . . . . . . . . . Damage Inflicted 31636 | 192 764 2255 3041 3203 . 587 . . 150 3664 2559 541 . . 3004 1179 2089 2941 2283 1133 1826 214 11 Guns 1872 | 192 382 831 . . . 205 . . . . . . . . . . . . . . 262 . . Cannons 11655 | . . 608 1760 1008 . 298 . . 82 2374 468 115 . . 741 525 523 1090 827 243 779 214 . Explosions 15942 | . . 273 945 2159 . 84 . . 68 1290 2091 426 . . 2263 153 1566 1851 1226 762 785 . . Melee 1735 | . 382 541 292 36 . . . . . . . . . . . 484 . . . . . . . Ramming 74 | . . 2 44 . . . . . . . . . . . . 17 . . . . . . 11 Kinetic 1547 | 79 170 831 . . . 205 . . . . . . . . . . . . . . 262 . . Thermal 13254 | 113 212 608 1356 2643 . 363 . . 150 2501 500 115 . . 741 525 523 1090 827 243 530 214 . Explosive 13633 | . . 273 755 332 . 19 . . . 1163 2059 426 . . 2263 153 1566 1851 1226 762 785 . . Electromagnetic 786 | . . . 594 192 . . . . . . . . . . . . . . . . . . . Impact 1215 | . 382 541 292 . . . . . . . . . . . . . . . . . . . . Slashing 878 | . . . . 36 . . . . . . . . . . . 484 . . 230 128 . . . Piercing . | . . . . . . . . . . . . . . . . . . . . . . . . Entropic 249 | . . . . . . . . . . . . . . . . . . . . . 249 . . Highest Corruption 10 | . . . . . . . . . . . . . . . 10 . 1 1 2 2 . 4 5 Average Corruption 1 | . . . . . . . . . . . . . . . 4 . 1 1 1 2 . 4 4 Corruption Purged . | . . . . . . . . . . . . . . . . . . . . . . . . Corruption Blocked 2 | . . . . 2 . . . . . . . . . . . . . . . . . . . Effects 30 | . . . . . . . . . . . . . . . 3 . 2 10 2 8 . 1 4 Message Errors 5 | . . . . . . . . . . . . . . . 1 . . . 1 2 . . 1 Matter Fused 6 | . . . . . . . . . . . . . . . 1 . . 3 . 2 . . . Heat Flow Errors 1 | . . . . . . . . . . . . . . . . . 1 . . . . . . Energy Discharges 5 | . . . . . . . . . . . . . . . . . . 3 . . . 1 1 Data Loss (minor) 11 | . . . . . . . . . . . . . . . 1 . 1 3 1 3 . . 2 Data Loss (major) 1 | . . . . . . . . . . . . . . . . . . . . 1 . . . Alerts 1 | . . . . . . . . . . . . . . . . . . 1 . . . . . Overload Shots . | . . . . . . . . . . . . . . . . . . . . . . . . Overflow Damage 1465 | . 62 144 167 317 . 34 . . . 12 68 2 . . 181 163 130 89 40 6 50 . . Projectiles 400 | . . 5 50 25 . 34 . . . 12 60 . . . 40 . 54 24 40 6 50 . . Explosions 609 | . . 4 37 276 . . . . . . 8 2 . . 141 . 76 65 . . . . . Melee 456 | . 62 135 80 16 . . . . . . . . . . . 163 . . . . . . . Knockbacks 5 | . . . 4 . . . . . . . . . . . . 1 . . . . . . . Impact 5 | . . . 4 . . . . . . . . . . . . 1 . . . . . . . Kinetic . | . . . . . . . . . . . . . . . . . . . . . . . . Secondary . | . . . . . . . . . . . . . . . . . . . . . . . . Self-Inflicted Damage 485 | . . 34 72 87 . . . . 46 70 60 . . . 81 . 18 . . . 17 . . Shots 14 | . . 1 1 1 . . . . 1 2 1 . . . 4 . 2 . . . 1 . . Rammed 1 | . . . . . . . . . . . . . . . . 1 . . . . . . . Targets Rammed 8 | . . 1 5 . . . . . . . . . . . . 1 . . . . . . 1 Kicked 7 | . . 1 5 . . . . . . . . . . . . . . . . . . . 1 Crushed . | . . . . . . . . . . . . . . . . . . . . . . . . Highest Temperature 477 | 117 135 372 308 228 . 171 48 . 20 414 336 169 . . 276 192 227 304 323 198 477 348 . Average Temperature 98 | 59 42 75 98 64 . 73 32 . 11 133 117 68 . . 110 82 122 120 148 99 195 142 . Received Heat Transfer 2087 | . 30 531 504 54 30 12 . . . 275 174 21 . . 72 21 24 99 42 38 160 . . Effects 15 | . . 3 2 . . . . . . 3 . . . . . . . . 4 . 1 2 . Shutdowns 2 | . . 1 . . . . . . . . . . . . . . . . . . 1 . . Energy Bleed 2 | . . . 1 . . . . . . . . . . . . . . . 1 . . . . Interference 10 | . . 2 1 . . . . . . 2 . . . . . . . . 3 . . 2 . Matter Decay 1 | . . . . . . . . . . 1 . . . . . . . . . . . . . Siege Activations . | . . . . . . . . . . . . . . . . . . . . . . . . Robots Corrupted . | . . . . . . . . . . . . . . . . . . . . . . . . Combat Hostiles . | . . . . . . . . . . . . . . . . . . . . . . . . Parts Fried 14 | . 1 4 7 . . . . . . . . . . . . . . 1 1 . . . . Impact Corruptions 13 | . 3 5 5 . . . . . . . . . . . . . . . . . . . . Robots Melted 14 | . . . . 1 . . . . . 4 . 1 . . 1 . . 2 3 1 1 . . Combat Hostiles 12 | . . . . . . . . . . 4 . 1 . . 1 . . 2 2 1 1 . . Parts Melted 36 | 1 1 . . 5 . . . . 2 4 . 1 . . . 1 3 5 4 2 4 3 . Heat Transferred 17366 | 407 629 1073 1876 2282 . 50 . . 100 2930 544 400 . . 185 407 407 2493 1502 185 1096 800 . Parts Sabotaged . | . . . . . . . . . . . . . . . . . . . . . . . . Parts Stolen . | . . . . . . . . . . . . . . . . . . . . . . . . Parts Stripped . | . . . . . . . . . . . . . . . . . . . . . . . . Power Chain Reactions 5 | . . . 1 . . 1 . . 1 2 . . . . . . . . . . . . . Missiles Intercepted . | . . . . . . . . . . . . . . . . . . . . . . . . Alert | -11 -10 -9 -8 -7 -7 -7 -7 -6 -6 -6 -6 -6 -6 -6 -5 -5 -5 -5 -5 -4 -4 -4 -4 ------- Run | Jun Mat Mat Mat Fac Low Low Zio Pro Fac Gar Fac Low Low Dat Pro Fac Upp Upp War Pro Fac Was Fac Peak Influence 1248 | 25 198 615 970 836 . . . . 96 1087 1248 . . . . 658 . . . . 440 106 59 Initial 570 | . 16 . 259 441 . . . . 25 56 570 . . . . 449 . . . . . 102 29 Average 428 | 9 91 235 531 524 . . . . 40 655 769 . . . . 498 . . . . 280 72 36 Maximum Alert Level 4 | . . 2 3 3 . . . . . 3 4 . . . . 2 . . . . 2 . . Low Security (%) 26 | 100 100 41 . . . . . . 100 8 . . . . . . . . . . 17 100 100 Level 1 17 | . . 39 36 13 . . . . . 10 . . . . . . . . . . 53 . . Level 2 36 | . . 18 34 68 . . . . . 33 56 . . . . 100 . . . . 28 . . Level 3 17 | . . . 29 18 . . . . . 47 29 . . . . . . . . . . . . Level 4 1 | . . . . . . . . . . . 13 . . . . . . . . . . . . Level 5 . | . . . . . . . . . . . . . . . . . . . . . . . . High Security . | . . . . . . . . . . . . . . . . . . . . . . . . Max Security . | . . . . . . . . . . . . . . . . . . . . . . . . Squads Dispatched 37 | . 1 7 10 4 . . . . 1 . 9 . . . . 1 . 1 . . 3 . . Investigation 12 | . . 3 4 . . . . . 1 . 2 . . . . . . . . . 2 . . Extermination 5 | . . . . 3 . . . . . . 1 . . . . . . . . . 1 . . Reinforcement 15 | . 1 4 5 . . . . . . . 4 . . . . 1 . . . . . . . Assault 5 | . . . 1 1 . . . . . . 2 . . . . . . 1 . . . . . Garrison . | . . . . . . . . . . . . . . . . . . . . . . . . Intercept . | . . . . . . . . . . . . . . . . . . . . . . . . Searches Triggered 1 | . . . . . . . . . . . . . . . . 1 . . . . . . . Data Miner Redirects 1 | . . . . . . . . . . . . . . . . . . . . . 1 . . Construction Impeded 3 | . . . . . . . . . . . 3 . . . . . . . . . . . . Haulers Reinforced 1 | . . . . . . . . . . . . . . . . 1 . . . . . . . Active Scanning Responses . | . . . . . . . . . . . . . . . . . . . . . . . . Cargo Convoy Interrupts 1 | . . . . 1 . . . . . . . . . . . . . . . . . . . Stealth | -11 -10 -9 -8 -7 -7 -7 -7 -6 -6 -6 -6 -6 -6 -6 -5 -5 -5 -5 -5 -4 -4 -4 -4 --------- Run | Jun Mat Mat Mat Fac Low Low Zio Pro Fac Gar Fac Low Low Dat Pro Fac Upp Upp War Pro Fac Was Fac Distress Signals 10 | . . 4 5 . . . . . . . . . . . . 1 . . . . . . . Communications Jammed 1 | . . . . . . . . . 1 . . . . . . . . . . . . . . Distress Signals . | . . . . . . . . . . . . . . . . . . . . . . . . Times Spotted 333 | . 20 49 53 17 6 6 . 16 1 28 22 7 . . 23 8 15 25 11 6 12 5 3 Peak Tracking Total 12 | . 4 7 10 12 7 3 . 7 1 5 6 3 . . 5 5 7 6 4 4 4 4 3 Tactical Retreats 18 | . 1 2 7 . 1 4 . . . . . . . . . . 1 1 . . 1 . . Traps | -11 -10 -9 -8 -7 -7 -7 -7 -6 -6 -6 -6 -6 -6 -6 -5 -5 -5 -5 -5 -4 -4 -4 -4 ------- Run | Jun Mat Mat Mat Fac Low Low Zio Pro Fac Gar Fac Low Low Dat Pro Fac Upp Upp War Pro Fac Was Fac Traps Triggered 13 | . 1 . . 1 . . . . . 8 . . . . . . . . . . 3 . . Indirectly . | . . . . . . . . . . . . . . . . . . . . . . . . Trap Hack Attempts . | . . . . . . . . . . . . . . . . . . . . . . . . Triggered . | . . . . . . . . . . . . . . . . . . . . . . . . Disarmed . | . . . . . . . . . . . . . . . . . . . . . . . . Reprogrammed . | . . . . . . . . . . . . . . . . . . . . . . . . Reused . | . . . . . . . . . . . . . . . . . . . . . . . . Traps Extracted . | . . . . . . . . . . . . . . . . . . . . . . . . Installed . | . . . . . . . . . . . . . . . . . . . . . . . . Triggered 23 | . . . . . . . . . . . . 1 . . 1 . . 1 20 . . . . Machines | -11 -10 -9 -8 -7 -7 -7 -7 -6 -6 -6 -6 -6 -6 -6 -5 -5 -5 -5 -5 -4 -4 -4 -4 ---------- Run | Jun Mat Mat Mat Fac Low Low Zio Pro Fac Gar Fac Low Low Dat Pro Fac Upp Upp War Pro Fac Was Fac Machines Disabled 55 | . . 6 10 13 . . . . 6 7 9 . . . 1 . 2 1 . . . . . Max in Single Turn 7 | . . 3 2 7 . . . . 1 1 2 . . . 1 . 1 1 . . . . . Garrison Access 2 | . . . 1 1 . . . . . . . . . . . . . . . . . . . Garrison Relay 3 | . . . . . . . . . . 3 . . . . . . . . . . . . . Machines Repaired . | . . . . . . . . . . . . . . . . . . . . . . . . Machines Sabotaged . | . . . . . . . . . . . . . . . . . . . . . . . . Overloaded Fab Kills . | . . . . . . . . . . . . . . . . . . . . . . . . Hacking | -11 -10 -9 -8 -7 -7 -7 -7 -6 -6 -6 -6 -6 -6 -6 -5 -5 -5 -5 -5 -4 -4 -4 -4 --------- Run | Jun Mat Mat Mat Fac Low Low Zio Pro Fac Gar Fac Low Low Dat Pro Fac Upp Upp War Pro Fac Was Fac Machines Accessed 51 | . 9 7 9 7 . . . . 4 . 2 . . 4 . 3 1 . 2 . 3 . . Terminals 23 | . 8 4 5 4 . . . . . . . . . . . 1 1 . . . . . . Fabricators 6 | . . . . . . . . . 2 . 2 . . . . 1 . . . . 1 . . Repair Stations 5 | . 1 1 1 . . . . . . . . . . . . 1 . . . . 1 . . Recycling Units 7 | . . 2 1 2 . . . . 1 . . . . . . . . . . . 1 . . Scanalyzers 2 | . . . 2 . . . . . . . . . . . . . . . . . . . . Garrison Access 2 | . . . . 1 . . . . 1 . . . . . . . . . . . . . . Total Hacks 189 | . 36 28 36 21 . . . . 8 . 6 . . 30 . 4 7 . 5 . 8 . . Successful 129 | . 17 15 25 16 . . . . 3 . 4 . . 30 . 3 7 . 5 . 4 . . Failed 59 | . 18 13 11 5 . . . . 5 . 2 . . . . 1 . . . . 4 . . Catastrophic 5 | . . . . . . . . . 4 . . . . . . 1 . . . . . . . Database Lockouts 1 | . 1 . . . . . . . . . . . . . . . . . . . . . . Manual 108 | . 19 13 19 13 . . . . 4 7 8 . . . 1 17 . . 1 . 3 . 3 Terminals 98 | . 31 19 24 16 . . . . . . . . . . . 1 7 . . . . . . Fabricators 13 | . . . . . . . . . 3 . 6 . . . . 1 . . . . 3 . . Repair Stations 15 | . 5 3 2 . . . . . . . . . . . . 2 . . . . 3 . . Recycling Units 14 | . . 6 1 3 . . . . 2 . . . . . . . . . . . 2 . . Scanalyzers 9 | . . . 9 . . . . . . . . . . . . . . . . . . . . Garrison Access 5 | . . . . 2 . . . . 3 . . . . . . . . . . . . . . Terminal Hacks 77 | . 9 9 9 7 . . . . . . . . . 30 . 1 7 . 5 . . . . Record 18 | . . . . . . . . . . . . . . 11 . . 7 . . . . . . Part Schematic 11 | . . . 1 . . . . . . . . . . 10 . . . . . . . . . Robot Schematic 9 | . . 2 1 . . . . . . . . . . 6 . . . . . . . . . Robot Analysis 7 | . 2 3 2 . . . . . . . . . . . . . . . . . . . . Prototype ID Bank 13 | . 2 2 1 1 . . . . . . . . . 3 . . . . 4 . . . . Open Door 1 | . . . . . . . . . . . . . . . . . . . 1 . . . . Open DSF 1 | . . . . . . . . . . . . . . . . 1 . . . . . . . Branch Access Points 3 | . . 1 1 1 . . . . . . . . . . . . . . . . . . . Terminal Index 3 | . 1 1 . 1 . . . . . . . . . . . . . . . . . . . Alert Level 2 | . 1 . 1 . . . . . . . . . . . . . . . . . . . . Unreport Threat 2 | . 1 . 1 . . . . . . . . . . . . . . . . . . . . Locate Traps 4 | . 2 . 1 1 . . . . . . . . . . . . . . . . . . . Recall Extermination 1 | . . . . 1 . . . . . . . . . . . . . . . . . . . Recall Assault 1 | . . . . 1 . . . . . . . . . . . . . . . . . . . Registered Components 1 | . . . . 1 . . . . . . . . . . . . . . . . . . . Fabricator Hacks 8 | . . . . . . . . . 2 . 4 . . . . . . . . . 2 . . Load Schematic 4 | . . . . . . . . . 1 . 2 . . . . . . . . . 1 . . Build 4 | . . . . . . . . . 1 . 2 . . . . . . . . . 1 . . Repair Station Hacks 10 | . 4 1 2 . . . . . . . . . . . . 2 . . . . 1 . . Scan Component 6 | . 2 1 1 . . . . . . . . . . . . 1 . . . . 1 . . Repair 4 | . 2 . 1 . . . . . . . . . . . . 1 . . . . . . . Recycling Unit Hacks 5 | . . 1 1 2 . . . . . . . . . . . . . . . . 1 . . Retrieve Components 5 | . . 1 1 2 . . . . . . . . . . . . . . . . 1 . . Scanalyzer 9 | . . . 9 . . . . . . . . . . . . . . . . . . . . Insert Component 5 | . . . 5 . . . . . . . . . . . . . . . . . . . . Analyze 4 | . . . 4 . . . . . . . . . . . . . . . . . . . . Garrison Access Hacks 1 | . . . . . . . . . 1 . . . . . . . . . . . . . . Unlock Access 1 | . . . . . . . . . 1 . . . . . . . . . . . . . . Unauthorized Hacks 19 | . 4 4 4 7 . . . . . . . . . . . . . . . . . . . Terminals 17 | . 4 3 4 6 . . . . . . . . . . . . . . . . . . . Track 2 | . . 1 . 1 . . . . . . . . . . . . . . . . . . . Botnet 9 | . 3 1 2 3 . . . . . . . . . . . . . . . . . . . Detonate 2 | . . 1 . 1 . . . . . . . . . . . . . . . . . . . Disrupt 2 | . . . 2 . . . . . . . . . . . . . . . . . . . . Operators 2 | . 1 . . 1 . . . . . . . . . . . . . . . . . . . Fabricators . | . . . . . . . . . . . . . . . . . . . . . . . . Repair Stations . | . . . . . . . . . . . . . . . . . . . . . . . . Recycling Units 1 | . . 1 . . . . . . . . . . . . . . . . . . . . . Reject 1 | . . 1 . . . . . . . . . . . . . . . . . . . . . Scanalyzers . | . . . . . . . . . . . . . . . . . . . . . . . . Garrison Access 1 | . . . . 1 . . . . . . . . . . . . . . . . . . . Reprogram 1 | . . . . 1 . . . . . . . . . . . . . . . . . . . Data Cores Recovered . | . . . . . . . . . . . . . . . . . . . . . . . . Used . | . . . . . . . . . . . . . . . . . . . . . . . . Hacking Detections 35 | . 7 7 7 5 . . . . 4 . 2 . . . . 1 . . . . 2 . . Full Trace Events 15 | . 1 4 5 . . . . . 1 . 2 . . . . . . . . . 2 . . Feedback Events . | . . . . . . . . . . . . . . . . . . . . . . . . Feedback Blocked . | . . . . . . . . . . . . . . . . . . . . . . . . Robot Schematics Acquired 9 | . . 2 1 . . . . . . . . . . 6 . . . . . . . . . Robots Built 1 | . . . . . . . . . . . 1 . . . . . . . . . . . . Authchips . | . . . . . . . . . . . . . . . . . . . . . . . . Time 179 | . . . . . . . . . 81 . 98 . . . . . . . . . . . . Total Robot Build Rating 1 | . . . . . . . . . . . 1 . . . . . . . . . . . . Part Schematics Acquired 15 | . . . 5 . . . . . . . . . . 10 . . . . . . . . . Parts Built 1 | . . . . . . . . . . . . . . . . . . . . . 1 . . Authchips . | . . . . . . . . . . . . . . . . . . . . . . . . Time 76 | . . . . . . . . . . . . . . . . . . . . . 76 . . Total Part Build Rating 5 | . . . . . . . . . . . . . . . . . . . . . 5 . . Parts Repaired 4 | . 2 . 1 . . . . . . . . . . . . 1 . . . . . . . Time 204 | . 64 . 51 . . . . . . . . . . . . 89 . . . . . . . Parts Recycled . | . . . . . . . . . . . . . . . . . . . . . . . . Recycled Matter . | . . . . . . . . . . . . . . . . . . . . . . . . Retrieved Matter . | . . . . . . . . . . . . . . . . . . . . . . . . Retrieved Components 15 | . . 5 1 1 . . . . . . . . . . . . . . . . 8 . . Parts Scanalyzed 4 | . . . 4 . . . . . . . . . . . . . . . . . . . . Part Schematics Acquired 4 | . . . 4 . . . . . . . . . . . . . . . . . . . . Parts Damaged . | . . . . . . . . . . . . . . . . . . . . . . . . Bothacking | -11 -10 -9 -8 -7 -7 -7 -7 -6 -6 -6 -6 -6 -6 -6 -5 -5 -5 -5 -5 -4 -4 -4 -4 ------------ Run | Jun Mat Mat Mat Fac Low Low Zio Pro Fac Gar Fac Low Low Dat Pro Fac Upp Upp War Pro Fac Was Fac Used RIF Installer . | . . . . . . . . . . . . . . . . . . . . . . . . Robots Hacked . | . . . . . . . . . . . . . . . . . . . . . . . . Non-combat . | . . . . . . . . . . . . . . . . . . . . . . . . Combat . | . . . . . . . . . . . . . . . . . . . . . . . . Robot Hacks Applied . | . . . . . . . . . . . . . . . . . . . . . . . . Relay Couplers Released 16 | . . . . 3 . . . . . 13 . . . . . . . . . . . . . Machine Destruction 16 | . . . . 3 . . . . . 13 . . . . . . . . . . . . . Fabnet Peak Effective % . | . . . . . . . . . . . . . . . . . . . . . . . . Robots Rewired 10 | . . . . . . . . . . 2 . . . . . 2 . 1 5 . . . . Allies Hacked 2 | . . . . . . . . . . . . . . . . . 1 . 1 . . . . Hacks Repelled . | . . . . . . . . . . . . . . . . . . . . . . . . Allies | -11 -10 -9 -8 -7 -7 -7 -7 -6 -6 -6 -6 -6 -6 -6 -5 -5 -5 -5 -5 -4 -4 -4 -4 -------- Run | Jun Mat Mat Mat Fac Low Low Zio Pro Fac Gar Fac Low Low Dat Pro Fac Upp Upp War Pro Fac Was Fac Total Allies 36 | . . . . . . . 14 . . 2 3 . . . 1 7 . 1 5 . 3 . . Largest Group 14 | . . . . . . . 14 14 8 1 2 1 . . 1 6 6 2 5 . 3 3 . Highest-Rated Group 404 | . . . . . . . 404 404 279 116 116 14 . . 96 339 336 75 271 . 138 138 . Highest-Rated Ally 116 | . . . . . . . 42 42 42 116 116 14 . . 96 70 70 49 65 . 46 46 . Zionite Dispatches 5 | . . . . . . . . . . . 2 . . . . 3 . . . . . . . Light 1 | . . . . . . . . . . . . . . . . 1 . . . . . . . Recon 2 | . . . . . . . . . . . 1 . . . . 1 . . . . . . . Hacker 1 | . . . . . . . . . . . . . . . . 1 . . . . . . . Demo 1 | . . . . . . . . . . . 1 . . . . . . . . . . . . Total Orders 30 | . . . . . . . . . . . 6 5 . . . 9 7 2 1 . . . . STAY 7 | . . . . . . . . . . . . 2 . . . 5 . . . . . . . FOLLOW 4 | . . . . . . . . . . . . . . . . 4 . . . . . . . AID 3 | . . . . . . . . . . . . 3 . . . . . . . . . . . EXPLORE 13 | . . . . . . . . . . . 5 . . . . . 5 2 1 . . . . RETURN 3 | . . . . . . . . . . . 1 . . . . . 2 . . . . . . Ally Attacks 299 | . . . . . . . . 88 11 8 31 . . . 16 29 45 5 12 . 19 35 . Total Damage 8962 | . . . . . . . . 1774 220 591 2051 . . . 549 840 929 86 359 . 559 1004 . Kills 60 | . . . . . . . . 19 2 2 13 . . . 3 10 6 . 1 . 3 1 . Allies Corrupted 5 | . . . . . . . . . 1 . . . . . 1 . . . 3 . . . . Allies Melted 1 | . . . . . . . . 1 . . . . . . . . . . . . . . . Intel | -11 -10 -9 -8 -7 -7 -7 -7 -6 -6 -6 -6 -6 -6 -6 -5 -5 -5 -5 -5 -4 -4 -4 -4 ------- Run | Jun Mat Mat Mat Fac Low Low Zio Pro Fac Gar Fac Low Low Dat Pro Fac Upp Upp War Pro Fac Was Fac Robot Analysis Total 7 | . 2 3 2 . . . . . . . . . . . . . . . . . . . . Derelict Logs Recovered 13 | . . . . . 2 2 . 2 . . . 1 1 . . . 2 2 . 1 . . . Drone Launches 16 | . . . . . . . . . . . 7 . . . . . 7 1 1 . . . . Drone Recoveries 11 | . . . . . . . . . . . 5 . . . . . 5 1 . . . . . Decoded 0b10 Intel 19 | . . . . . . . . . . . . . . . . 19 . . . . . . . Traps 3 | . . . . . . . . . . . . . . . . 3 . . . . . . . Items 12 | . . . . . . . . . . . . . . . . 12 . . . . . . . Machines 4 | . . . . . . . . . . . . . . . . 4 . . . . . . . Zionite Intel Received 4 | . . . . . . . . . . 1 1 . . . . 2 . . . . . . . Branch Access 2 | . . . . . . . . . . . 1 . . . . 1 . . . . . . . Emergency Access 1 | . . . . . . . . . . 1 . . . . . . . . . . . . . Component Stockpiles 1 | . . . . . . . . . . . . . . . . 1 . . . . . . . Exploration | -11 -10 -9 -8 -7 -7 -7 -7 -6 -6 -6 -6 -6 -6 -6 -5 -5 -5 -5 -5 -4 -4 -4 -4 ------------- Run | Jun Mat Mat Mat Fac Low Low Zio Pro Fac Gar Fac Low Low Dat Pro Fac Upp Upp War Pro Fac Was Fac Turns Passed 16965 | 112 836 1081 1175 1027 299 820 1312 984 175 1414 762 318 281 124 1139 647 535 742 1643 546 586 214 193 Spaces Moved 9758 | 47 474 639 790 562 248 596 1072 831 134 626 399 176 171 76 628 326 265 345 680 307 197 100 69 Core 8 | 4 . . . . . . . . . 4 . . . . . . . . . . . . . Treads 3513 | . . . . . . 18 . . . 89 399 176 171 76 628 326 265 345 680 307 33 . . Legs 2929 | 43 474 245 352 312 202 384 . . 51 533 . . . . . . . . . . 164 100 69 Wheels 3159 | . . 394 289 250 46 194 1072 831 83 . . . . . . . . . . . . . . Hover 149 | . . . 149 . . . . . . . . . . . . . . . . . . . . Flight . | . . . . . . . . . . . . . . . . . . . . . . . . Fastest Speed 50 | 50 120 85 56 90 105 105 115 105 105 120 165 165 165 165 165 165 170 170 170 170 170 120 120 Average Speed 139 | 124 120 101 84 112 113 115 115 108 111 169 165 165 165 165 165 166 170 170 214 171 211 176 179 Slowest Speed 410 | 190 190 190 180 185 185 250 115 115 190 260 165 165 165 165 165 170 170 250 250 250 410 190 190 Overloaded Moves . | . . . . . . . . . . . . . . . . . . . . . . . . Propulsion Burnouts . | . . . . . . . . . . . . . . . . . . . . . . . . Robots Hopped 1 | . . . . . . . . . . . . . . . . . 1 . . . . . . Cave-ins Triggered 1 | . . . . . . . . . . . . . . . . . . . . . . 1 . Exploration Rate (%) 53 | 4 87 61 67 15 51 79 90 96 5 72 29 35 38 68 87 10 95 58 97 54 6 66 3 Regions Visited 23 Branch Regions 12 Pre-discovered Areas 5 | . . . . . . . 1 1 . . . . . 1 . . 1 . . 1 . . . Known Exits Taken 7 | . . . . 1 . . . . 1 . 1 1 . . . 1 1 . . 1 . . . Unknown Exits Taken 13 | 1 1 1 1 . 1 1 1 1 . . . . 1 1 1 . . 1 1 . . . . Scrap Searched 21 | . . . . . 1 4 3 1 . . . 1 1 . 1 . 3 4 . 2 . . . Spaces Dug 53 | . 1 1 6 . . 2 . . . 2 32 . . . . . . . . . 1 8 . Terrain Destroyed 1310 | . 1 35 62 107 . 25 . . 1 108 191 44 . . 175 31 126 131 124 54 83 12 . Melee 8 | . 1 1 6 . . . . . . . . . . . . . . . . . . . . Projectile 126 | . . . 19 1 . 19 . . 1 24 8 . . . 3 3 2 10 5 2 17 12 . AOE 1176 | . . 34 37 106 . 6 . . . 84 183 44 . . 172 28 124 121 119 52 66 . . Terrain Rammed . | . . . . . . . . . . . . . . . . . . . . . . . . Walls Destroyed . | . . . . . . . . . . . . . . . . . . . . . . . . Machines Disabled . | . . . . . . . . . . . . . . . . . . . . . . . . Actions | -11 -10 -9 -8 -7 -7 -7 -7 -6 -6 -6 -6 -6 -6 -6 -5 -5 -5 -5 -5 -4 -4 -4 -4 --------- Run | Jun Mat Mat Mat Fac Low Low Zio Pro Fac Gar Fac Low Low Dat Pro Fac Upp Upp War Pro Fac Was Fac Total 12309 | 71 657 879 1146 893 263 696 1150 911 152 862 478 198 170 75 703 421 334 478 855 324 337 126 130 Wait 1080 | 2 72 63 150 196 10 74 56 75 4 74 26 6 . . 13 43 36 38 25 5 60 1 51 Move 9732 | 46 473 638 789 561 247 595 1071 830 134 623 398 175 170 75 627 325 262 344 679 306 197 98 69 Hop 1 | . . . . . . . . . . . . . . . . . 1 . . . . . . Pick Up 129 | 3 28 15 17 22 . 1 3 . 2 9 2 3 . . 2 5 1 5 3 . 6 1 1 Fast Attach 99 | 7 6 7 16 8 1 2 6 2 3 8 3 . . . 2 . 2 2 16 1 5 2 . Attach 48 | . . 7 8 9 . . 2 . 2 7 2 . . . 1 4 . . . . 4 . 2 Detach 27 | . . 5 4 10 . . 1 . . 2 . . . . . 1 1 . . . 2 . 1 Swap 174 | . 20 25 19 26 4 3 1 . 1 20 6 6 . . 7 4 5 8 8 2 9 . . Drop 149 | . 15 19 18 17 1 2 9 2 3 8 4 2 . . 6 3 2 1 20 . 11 5 1 Fire 643 | 13 30 80 101 43 . 17 1 . 3 77 37 6 . . 44 17 24 50 30 10 38 18 4 Melee 57 | . 13 19 19 1 . . . . . . . . . . . 5 . . . . . . . Ram . | . . . . . . . . . . . . . . . . . . . . . . . . Kick 7 | . . 1 5 . . . . . . . . . . . . . . . . . . . 1 Crush 1 | . . . . . . . . . . . . . . . . 1 . . . . . . . Escape Stasis 36 | . . . . . . . . . . 30 . . . . . . . . . . 5 1 . Rewire 126 | . . . . . . 2 . 2 . 4 . . . . 1 13 . 30 74 . . . . Trap . | . . . . . . . . . . . . . . . . . . . . . . . . Miscellaneous . | . . . . . . . . . . . . . . . . . . . . . . . . Route ------- -11/Junkyard -10/Materials (discovered 5 exits: *Mat x3 / [*Min x2]) -9/Materials (discovered 2 exits: *Mat / *Min) -8/Materials (discovered 2 exits: *Fac / Sto) -7/Factory (discovered 2 exits: *Low x2) -7/Lower Caves -7/Lower Caves (discovered 2 exits: *Fac / *Zio) -7/Zion -6/Proximity Caves -6/Factory (discovered 3 exits: *Fac / Low / Gar) -6/Garrison (discovered 4 exits: *Fac x4) -6/Factory (discovered 3 exits: *Fac / *Low x2) -6/Lower Caves -6/Lower Caves -6/Data Miner -5/Proximity Caves -5/Factory (discovered 4 exits: *Fac x2 / *Upp x2) -5/Upper Caves -5/Upper Caves (discovered 2 exits: *Fac / *War) -5/Warlord -4/Proximity Caves -4/Factory (discovered 3 exits: Res / Upp x2) -4/Waste -4/Factory History --------- Turn | Location | Event 32 | -11/Junkyard | Discovered new exit (range 15) 113 | -11/Junkyard | Entered Materials 307 | -10/Materials | Build established: Mutant 311 | -10/Materials | Discovered new exit (range 15) 426 | -10/Materials | Discovered new exit (range 7) 512 | -10/Materials | Repaired Med. Armor Plating 548 | -10/Materials | Repaired Med. Armor Plating 635 | -10/Materials | Discovered new exit (range 9) 795 | -10/Materials | Central database locked down 795 | -10/Materials | Discovered new exit (range 15) 930 | -10/Materials | Discovered new exit (range 14) 949 | -10/Materials | Entered another Materials area 949 | -9/Materials | Evolved 2 slots: Utility x2 1187 | -9/Materials | Discovered new exit (range 14) 1654 | -9/Materials | Identified exit to Mines 1949 | -9/Materials | Core integrity fell below 50% 2021 | -9/Materials | Discovered new exit (range 11) 2030 | -9/Materials | Entered another Materials area 2030 | -8/Materials | Evolved 2 slots: Utility x2 2032 | -8/Materials | Build established: Hacker-Mutant 2361 | -8/Materials | Repaired Adv. Beam Cannon 2721 | -8/Materials | Lost 6 parts (1p1n3u1w) 2782 | -8/Materials | Core integrity fell below 50% 2921 | -8/Materials | Identified exit to Storage 2950 | -8/Materials | Lost 3 parts (1n1u1w) 3170 | -8/Materials | Discovered new exit (range 3) 3205 | -8/Materials | Entered Factory 3205 | -7/Factory | Evolved 2 slots: Utility x2 3445 | -7/Factory | Identified exit to Lower Caves 4065 | -7/Factory | Cargo convoy interrupted 4094 | -7/Factory | Found Prototype Slashing Weapon 4094 | -7/Factory | Identified Vibroblade 4100 | -7/Factory | Found Prototype Device 4101 | -7/Factory | Identified Adv. EM Disruption Field 4104 | -7/Factory | Found Prototype Energy Cannon 4105 | -7/Factory | Destroyed 11 combat bots 4105 | -7/Factory | Identified Exp. Thermic Cannon 4109 | -7/Factory | Found Prototype Launcher 4110 | -7/Factory | Identified Mni. Smartbomb Launcher 4137 | -7/Factory | Found Vibroblade 4184 | -7/Factory | Build established: Mutant 4223 | -7/Factory | Found Adv. EM Disruption Field 4232 | -7/Factory | Entered Lower Caves 4245 | -7/Lower Caves | Spotted B-75 Beast 4452 | -7/Lower Caves | Learned 4 Factory zone layouts 4466 | -7/Lower Caves | Learned 8 Factory zone layouts 4522 | -7/Lower Caves | Discovered new exit (range 10) 4524 | -7/Lower Caves | Build established: Scavenger-Mutant 4528 | -7/Lower Caves | Attracted the attention of an 0b10 outpost 4531 | -7/Lower Caves | Entered another Lower Caves area 4603 | -7/Lower Caves | Spotted B-75 Beast 4683 | -7/Lower Caves | Discovered new exit (range 4) 4850 | -7/Lower Caves | Learned Factory stockpile data 4918 | -7/Lower Caves | Encountered a Warlord checkpoint 5040 | -7/Lower Caves | Attracted the attention of an 0b10 checkpoint 5259 | -7/Lower Caves | Learned Factory emergency access door positions 5319 | -7/Lower Caves | Discovered new exit (range 5) 5351 | -7/Lower Caves | Entered Zion 5435 | -7/Zion | Discovered new exit (range 12) 5452 | -7/Zion | Gained Derelict followers 5819 | -7/Zion | Found Prototype Device 5819 | -7/Zion | Identified Mobile Refinery Mk. CCLXVII 5857 | -7/Zion | Found Prototype Launcher 5857 | -7/Zion | Identified Rocket Array 5866 | -7/Zion | Found Prototype Launcher 5866 | -7/Zion | Identified Gui. Missile Launcher 5918 | -7/Zion | Gained Derelict followers 5992 | -7/Zion | Learned location of Data Miner (-6) 6193 | -7/Zion | Imprinted 6195 | -7/Zion | Declared Zion's savior 6347 | -7/Zion | Given A8's code to call for help 6663 | -7/Zion | Entered Proximity Caves 6663 | -6/Proximity Caves | Accompanied by 14 allies 6673 | -6/Proximity Caves | Attacked by a faux Warlord 6719 | -6/Proximity Caves | Learned Factory non-interactive machine intel 7517 | -6/Proximity Caves | Discovered new exit (range 11) 7647 | -6/Proximity Caves | Entered Factory 7647 | -6/Factory | Accompanied by 8 allies 7647 | -6/Factory | Evolved 2 slots: Power x1, Propulsion x1 7648 | -6/Factory | Identified exit to Lower Caves 7651 | -6/Factory | Loaded intel: 187 non-interactive machine locations 7753 | -6/Factory | Discovered new exit (range 15) 7821 | -6/Factory | Identified exit to Garrison 7822 | -6/Factory | Entered Garrison 7849 | -6/Garrison | Retrieved Zion intel report: Emergency Access 7852 | -6/Garrison | Triggered checkpoint 7885 | -6/Garrison | Garrison Relay disabled 7937 | -6/Garrison | Attempted to install RIF, but system incompatible 7956 | -6/Garrison | Spotted B-75 Beast 7959 | -6/Garrison | Triggered checkpoint 7967 | -6/Garrison | Triggered checkpoint 7991 | -6/Garrison | Destroyed B-75 Beast 8223 | -6/Garrison | Discovered new exit (range 11) 8243 | -6/Garrison | Lost 3 parts (1p1n1u) 8270 | -6/Garrison | Triggered checkpoint 8324 | -6/Garrison | Garrison Relay disabled 8422 | -6/Garrison | Attempted to access garrison exit controls, blocked by remote lockdown 8645 | -6/Garrison | Discovered new exit (range 12) 8704 | -6/Garrison | Attempted to access garrison exit controls, blocked by remote lockdown 8810 | -6/Garrison | Triggered checkpoint 8904 | -6/Garrison | Discovered new exit (range 10) 8910 | -6/Garrison | Spotted B-86 Titan 8920 | -6/Garrison | Triggered checkpoint 8961 | -6/Garrison | Lost 3 parts (1n2u) 8970 | -6/Garrison | Discovered new exit (range 5) 8981 | -6/Garrison | Spotted B-86 Titan 8985 | -6/Garrison | Rewired B-75 Beast 8999 | -6/Garrison | Destroyed B-86 Titan 9032 | -6/Garrison | Destroyed B-86 Titan 9061 | -6/Garrison | Lost 3 parts (2n1u) 9071 | -6/Garrison | Rewired B-86 Titan 9094 | -6/Garrison | Found Quantum Capacitor 9218 | -6/Garrison | Triggered checkpoint 9236 | -6/Garrison | Entered Factory 9236 | -6/Factory | Accompanied by 1 ally 9454 | -6/Factory | Zion Recon squad teleported in 9485 | -6/Factory | Discovered new exit (range 44) 9586 | -6/Factory | First assault squad dispatched 9627 | -6/Factory | Build established: Mutant 9792 | -6/Factory | Discovered exit to Lower Caves (range 62) 9805 | -6/Factory | Retrieved Zion intel report: Branch Access 9806 | -6/Factory | Zion Demo squad teleported in 9974 | -6/Factory | Fabricated M-13 Machinist? 9998 | -6/Factory | Entered Lower Caves 9998 | -6/Lower Caves | Accompanied by 1 ally 10097 | -6/Lower Caves | Spotted B-75 Beast 10121 | -6/Lower Caves | Destroyed B-75 Beast 10263 | -6/Lower Caves | Identified exit to Lower Caves 10316 | -6/Lower Caves | Entered another Lower Caves area 10321 | -6/Lower Caves | Learned location of 1 exit from Factory 10535 | -6/Lower Caves | Encountered a Warlord checkpoint 10585 | -6/Lower Caves | Discovered new exit (range 4) 10597 | -6/Lower Caves | Entered Data Miner 10597 | -6/Data Miner | Discovered new exit (range 6) 10629 | -6/Data Miner | Met Data Miner 10672 | -6/Data Miner | Learned location of Section 7 (-3) 10672 | -6/Data Miner | Acquired the access code to Warlord's prototype stash 10683 | -6/Data Miner | Received God Mode back door access code from Data Miner 10721 | -6/Data Miner | Entered Proximity Caves 10724 | -5/Proximity Caves | Spotter reported a threat 10724 | -5/Proximity Caves | Spotter reported a threat 10737 | -5/Proximity Caves | Attracted the attention of an 0b10 checkpoint 10789 | -5/Proximity Caves | Destroyed 7 combat bots 10984 | -5/Proximity Caves | Escorted by Enhanced Grunt 11069 | -5/Proximity Caves | Acquired the password to a Derelict Tinkerer's latest research 11081 | -5/Proximity Caves | Found Prototype Special Weapon 11421 | -5/Proximity Caves | Caught by Unaware searching for contraband prototypes 11794 | -5/Proximity Caves | Spotted B-75 Beast 11837 | -5/Proximity Caves | Discovered new exit (range 14) 11860 | -5/Proximity Caves | System corruption reached 10% 11860 | -5/Proximity Caves | Entered Factory 11860 | -5/Factory | Evolved 2 slots: Utility x2 11861 | -5/Factory | Identified exit to Factory 12130 | -5/Factory | Retrieved Zion intel report: Branch Access 12130 | -5/Factory | Identified exit to Upper Caves 12131 | -5/Factory | Zion Hacker squad teleported in 12155 | -5/Factory | Build established: Scavenger-Mutant 12160 | -5/Factory | Search patrols dispatched 12300 | -5/Factory | Discovered exit to Factory (range 11) 12302 | -5/Factory | Retrieved Zion intel report: Component Stockpiles 12303 | -5/Factory | Zion Light squad teleported in 12425 | -5/Factory | Zion Recon squad teleported in 12452 | -5/Factory | Repaired Mni. Smartbomb Launcher? 12507 | -5/Factory | Entered Upper Caves 12507 | -5/Upper Caves | Accompanied by 6 allies 12624 | -5/Upper Caves | Attracted the attention of an 0b10 base 12625 | -5/Upper Caves | Identified exit to Upper Caves 12653 | -5/Upper Caves | Found Prototype Protection 12653 | -5/Upper Caves | Identified Zio. Weapon Casing 12671 | -5/Upper Caves | Learned Factory emergency access door positions 12671 | -5/Upper Caves | Learned Armory stockpile data 12671 | -5/Upper Caves | Learned Armory garrison access intel 12806 | -5/Upper Caves | Learned Factory stockpile data 13042 | -5/Upper Caves | Entered another Upper Caves area 13042 | -5/Upper Caves | Accompanied by 3 allies 13075 | -5/Upper Caves | Attracted the attention of an 0b10 outpost 13153 | -5/Upper Caves | Destroyed 9 combat bots 13261 | -5/Upper Caves | Discovered exit to Factory (range 14) 13329 | -5/Upper Caves | Learned 12 Factory zone layouts 13408 | -5/Upper Caves | Spotted B-75 Beast 13451 | -5/Upper Caves | Destroyed B-75 Beast 13720 | -5/Upper Caves | Learned Factory emergency access door positions 13769 | -5/Upper Caves | Discovered new exit (range 10) 13777 | -5/Upper Caves | Attracted the attention of an 0b10 checkpoint 13784 | -5/Upper Caves | Entered Warlord 13875 | -5/Warlord | Discovered new exit (range 15) 13926 | -5/Warlord | System corruption cleaned by Quarantine Array 14025 | -5/Warlord | Found Prototype Special Weapon 14025 | -5/Warlord | Identified RU-N14's Throwing Claymores v3 14349 | -5/Warlord | Warlord's base attacked by MAIN.C 14366 | -5/Warlord | Found Prototype Energy Cannon 14367 | -5/Warlord | Identified Vortex Cannon 14371 | -5/Warlord | Found Prototype Energy Cannon 14371 | -5/Warlord | Identified Vortex Driver 14699 | -5/Warlord | Warlord forces counterattacked 14704 | -5/Warlord | Found Prototype Device 14704 | -5/Warlord | Identified Wardrone Bay 14972 | -5/Warlord | Rebuked by Warlord 14995 | -5/Warlord | Opened Warlord's prototype stash 15003 | -5/Warlord | Found Prototype Reactor 15003 | -5/Warlord | Identified Vortex Chain Reactor 15012 | -5/Warlord | Found Prototype Device 15013 | -5/Warlord | Identified Exp. Cloaking Device 15024 | -5/Warlord | Warlord base infiltrated, sounded retreat 15037 | -5/Warlord | Found Prototype Device 15037 | -5/Warlord | Identified Thermal Barrier 15295 | -5/Warlord | Spotted Striker 15302 | -5/Warlord | Spotted Executioner 15305 | -5/Warlord | Destroyed Striker 15318 | -5/Warlord | Destroyed Executioner 15339 | -5/Warlord | Destroyed 7 combat bots 15427 | -5/Warlord | Entered Proximity Caves 15467 | -4/Proximity Caves | Build established: Mutant 15967 | -4/Proximity Caves | Discovered exit to Factory (range 4) 15973 | -4/Proximity Caves | Entered Factory 15973 | -4/Factory | Evolved 2 slots: Utility x2 15974 | -4/Factory | Identified exit to Upper Caves 15975 | -4/Factory | Identified exit to Research 16166 | -4/Factory | Allied Derelicts emerged from ambush trap array 16370 | -4/Factory | Found Quantum Capacitor 16433 | -4/Factory | Spotted B-86 Titan 16446 | -4/Factory | Destroyed B-86 Titan 16462 | -4/Factory | Build established: Scavenger-Mutant 16470 | -4/Factory | Incoming investigation squad redirected 16530 | -4/Factory | Fabricated Lgt. Regenerative Plating (x1) 16559 | -4/Factory | Sucked down chute 16559 | -4/Factory | Entered Waste 16585 | -4/Waste | 3 allies followed down the chute 16621 | -4/Waste | Found Prototype Device 16621 | -4/Waste | Identified Exp. Focal Shield 16625 | -4/Waste | Spotted C-40 Crusher 16637 | -4/Waste | Destroyed C-40 Crusher 16641 | -4/Waste | Spotted C-40 Crusher 16644 | -4/Waste | Allies destroyed C-40 Crusher 16650 | -4/Waste | Spotted C-40 Crusher 16652 | -4/Waste | Spotted C-40 Crusher 16664 | -4/Waste | Spotted C-40 Crusher 16700 | -4/Waste | Crushed by falling debris 16713 | -4/Waste | Spotted C-40 Crusher 16755 | -4/Waste | Discovered new exit (range 16) 16773 | -4/Waste | Entered Factory 16832 | -4/Factory | Build established: Mutant 16888 | -4/Factory | Identified Molecular Deconstructor 16966 | -4/Factory | Self-destructed Last Messages --------------- 16945_ Slug penetrates Wall. 16945_ Penetrated by Slug. 16945_ Exp. Focal Shield destroyed. 16946_ Penetrated by Slug. 16946_ Slug penetrates Wall. 16952_ Penetrated by Slug. 16952_ Flexi-carbon Leg destroyed. 16952_ Entropy package works its way towards H-77 Assassin core. 16954_ H-77 Assassin core destabilizing. 16955_ Penetrated by Slug. 16955_ Quantum Capacitor destroyed. 16955_ Penetrated by Slug. 16958_ H-77 Assassin core entropy levels peaking. 16959_ Penetrated by Slug. 16960_ Slug penetrates Wall. 16960_ Penetrated by Slug. 16960_ Slug penetrates Wall. 16962_ Molecular Deconstructor destroyed. 16964_ Slug penetrates Wall. 16965_ Penetrated by Slug. Map ----- +----------------------------------------------------+ | ???????????????????????????????????# "??? "?? ? | | ???????????????????????????????????# "??" ?? " | | ???????????????????????????????????# """" ?? " | | ???????????????????????????????????# """" ?? " | | ???????????????????????????????????# | | ???????????????????????????????????# """" """" " | | ??????????????###??????????????????# """" """" " | | ????????????? ?????????????????# """" """" " | | ?????????????? ??############### """" """" " | | ??????????????" ?+ """" """" " | | ??????????????" # """" """" " | | ????????????????? ! + | | ????????????????? ?# |= " | | ???????????????? ? ?# =%!% | | ???????????????? # !%###################+### | | ???????????????" # [=# #???# # | | ?????????????????? # """ #???# # | | ?????????????????????# " """" #???# # | | ?????????????????????# " """" #???# # | | ?????????????????????# # #???# # | | ?????????????????????# # #???# # | | ?????????????????????# # T #???# # | | ???????????????????### # "" #???# # | | ?????????????+ h =#???# # | | ?????????????# ####;##########???########## | | ?????????????????? # @ #??????????????????? | | ????????????????? # #??????????????????? | | ???????????????? # #??????????????????? | | ???????????????? ?# #??????????????????? | | ?????????????????? ???# #??????????????????? | | ??????????????????????#####+###??????????????????? | | ?????????????????????????????????????????????????? | | ?????????????????????????????????????????????????? | | ?????????????????????????????????????????????????? | | ?????????????????????????????????????????????????? | | ?????????????????????????????????????????????????? | | ?????????????????????????????????????????????????? | | ?????????????????????????????????????????????????? | | ?????????????????????????????????????????????????? | | ?????????????????????????????????????????????????? | | ?????????????????????????????????????????????????? | | ?????????????????????????????????????????????????? | | ?????????????????????????????????????????????????? | | ?????????????????????????????????????????????????? | | ?????????????????????????????????????????????????? | | ?????????????????????????????????????????????????? | | ?????????????????????????????????????????????????? | | ?????????????????????????????????????????????????? | | ?????????????????????????????????????????????????? | | ?????????????????????????????????????????????????? | +----------------------------------------------------+ Best States ------------- Heat Dissipation 97 Coolant Potential 80 Energy Generation 55 Energy Capacity 1050 Matter Stores 300 Matter Capacity 300 Sight Range 16 Robot Scan Range 18 Terrain Scan Density 10 Jamming Range 12 Cloak Strength 4 Additional Mass Support 12 Base Temperature (-) 100 Corruption Block 8 Armor Coverage 450 Resistance: KI 30 Resistance: TH 50 Resistance: EX 25 Resistance: EM 50 Propulsion Shielding 66 Weapon Shielding 100 Weapon Cycling 15 Evasion (%) 61 Launcher Accuracy 20 Recoil Reduction 3 Particle Charging 25 Offensive Hacking 40 Defensive Hacking 10 Item Schematics ----------------- Hacking Suite | -8/Materials | Scanalyzed Arm. Wheel | -8/Materials | Scanalyzed Particle Charger | -8/Materials | Scanalyzed Imp. Utility Shielding | -8/Materials | Hacked Transmission Jammer | -8/Materials | Scanalyzed Combat Drone Bay | -6/Data Miner | Free Lgt. Regenerative Plating | -6/Data Miner | Free Enh. Armored Leg | -6/Data Miner | Free Prc. Matter Filter | -6/Data Miner | Free Tesla Bomb Launcher | -6/Data Miner | Free Imp. Linear Gravjet | -6/Data Miner | Free Adv. Power Amplifier | -6/Data Miner | Free Phase Gun | -6/Data Miner | Free Adv. Launcher Guidance Computer | -6/Data Miner | Free Hvy. Phase Cannon | -6/Data Miner | Free Robot Schematics ------------------ R-06 Scavenger | -9/Materials | Hacked M-13 Machinist | -9/Materials | Hacked H-55 Commando | -8/Materials | Hacked E-15 Imp | -6/Data Miner | Free G-50 Soldier | -6/Data Miner | Free A-15 Conveyor | -6/Data Miner | Free S-27 Virus | -6/Data Miner | Free W-44 Eye | -6/Data Miner | Free M-30 Cleanser | -6/Data Miner | Free Fabricated ------------ M-13 Machinist | x1 | -6/Factory Lgt. Regenerative Plating | x1 | -4/Factory Alien Tech Used ----------------- None Achievements -------------- None Challenges ------------ None Game ------ Seed TitaniumAblativeAutocannon Manual? 0 Play Time 04:10:36 Cumulative 1054.9 hours Start 2023.07.20 @ 18:09:40 End 2023.07.23 @ 12:15:51 Sessions 15 Manual Loads 0 Difficulty Rogue Special Mode None Game No. 435 Rogue 435 Adventurer 0 Explorer 0 Win Type - Total 14 Types 12/0/1/1/0/0/0/0/0 Lore% 72 Gallery% 84 Achievement% 71 Wizard Run 0 Options --------- ASCII 0 Keyboard 1 Movement Numpad Keybinds 0 Fullscreen 1 Font 18/SmallcapsGlow Map View 112x50 Tactical HUD 1 Map Filters NONE Filters NONE Steam 1 RUN: 3b7f1f69-2e27-467f-84b0-5c3578c6efba